[Event "Titled Tuesday Blitz April 12 Early 2022"]
[White "Vovk, Orest"]
[Black "Hoffmann, Asa"]
[WhiteFideId "14113490"]
[BlackFideId "2001470"]
[WhiteElo "2203"]
[BlackElo "2117"]
[Result "1-0"]
[Round "02"]
[TimeControl "180+1"]
[Date "2022.04.13"]
[WhiteClock "0:00:20"]
[BlackClock "0:00:27"]

1. h4 {[%clk 0:02:55]}  e5 {[%clk 0:02:58]} 2. h5 {[%clk 0:02:51]}  d5 {[%clk 0:02:57]} 3. h6 {[%clk 0:02:44]}  Nxh6 {[%clk 0:02:53]} 4. d4 {[%clk 0:02:44]}  e4 {[%clk 0:02:42]} 5. Bxh6 {[%clk 0:02:44]}  gxh6 {[%clk 0:02:41]} 6. e3 {[%clk 0:02:45]}  Bf5 {[%clk 0:02:32]} 7. c4 {[%clk 0:02:42]}  c6 {[%clk 0:02:32]} 8. Nc3 {[%clk 0:02:41]}  Bb4 {[%clk 0:02:25]} 9. Qb3 {[%clk 0:02:37]}  Qa5 {[%clk 0:02:20]} 10. cxd5 {[%clk 0:02:29]}  cxd5 {[%clk 0:02:17]} 11. Rh5 {[%clk 0:02:28]}  Be6 {[%clk 0:02:15]} 12. Ne2 {[%clk 0:02:17]}  Nc6 {[%clk 0:02:13]} 13. a3 {[%clk 0:02:16]}  O-O-O {[%clk 0:02:05]} 14. Rc1 {[%clk 0:02:15]}  Bxc3+ {[%clk 0:02:03]} 15. Nxc3 {[%clk 0:02:15]}  Kb8 {[%clk 0:02:03]} 16. Bb5 {[%clk 0:02:11]}  Ne7 {[%clk 0:01:50]} 17. Kf1 {[%clk 0:02:05]}  Rc8 {[%clk 0:01:48]} 18. Rc2 {[%clk 0:01:48]}  Rhg8 {[%clk 0:01:39]} 19. Be2 {[%clk 0:01:42]}  Nf5 {[%clk 0:01:28]} 20. g4 {[%clk 0:01:35]}  Nd6 {[%clk 0:01:25]} 21. Rxh6 {[%clk 0:01:12]}  Nc4 {[%clk 0:01:20]} 22. Bxc4 {[%clk 0:01:08]}  dxc4 {[%clk 0:01:14]} 23. Qb5 {[%clk 0:01:07]}  Qxb5 {[%clk 0:01:12]} 24. Nxb5 {[%clk 0:01:08]}  Bxg4 {[%clk 0:01:10]} 25. Rxh7 {[%clk 0:01:00]}  Be6 {[%clk 0:01:01]} 26. Nd6 {[%clk 0:00:55]}  Rc6 {[%clk 0:01:00]} 27. Nxe4 {[%clk 0:00:46]}  Bf5 {[%clk 0:00:58]} 28. Rh4 {[%clk 0:00:46]}  Re8 {[%clk 0:00:55]} 29. f3 {[%clk 0:00:42]}  b5 {[%clk 0:00:52]} 30. Rch2 {[%clk 0:00:38]}  Bxe4 {[%clk 0:00:51]} 31. Rxe4 {[%clk 0:00:37]}  Rxe4 {[%clk 0:00:48]} 32. fxe4 {[%clk 0:00:38]}  a5 {[%clk 0:00:47]} 33. Rh5 {[%clk 0:00:37]}  Rb6 {[%clk 0:00:46]} 34. Rc5 {[%clk 0:00:36]}  Kb7 {[%clk 0:00:42]} 35. Kf2 {[%clk 0:00:36]}  Ka6 {[%clk 0:00:42]} 36. d5 {[%clk 0:00:36]}  f6 {[%clk 0:00:41]} 37. Kf3 {[%clk 0:00:34]}  Rd6 {[%clk 0:00:41]} 38. a4 {[%clk 0:00:28]}  bxa4 {[%clk 0:00:39]} 39. Rxc4 {[%clk 0:00:28]}  Kb5 {[%clk 0:00:38]} 40. Rc8 {[%clk 0:00:28]}  f5 {[%clk 0:00:36]} 41. exf5 {[%clk 0:00:25]}  Rxd5 {[%clk 0:00:36]} 42. e4 {[%clk 0:00:25]}  Rd2 {[%clk 0:00:34]} 43. f6 {[%clk 0:00:25]}  Rd1 {[%clk 0:00:33]} 44. Ke2 {[%clk 0:00:23]}  Rd4 {[%clk 0:00:28]} 45. f7 {[%clk 0:00:20]}  Rxe4+ {[%clk 0:00:27]} 46. Kd3 {[%clk 0:00:20]} 1-0


[Site "https://www.chess.com"]

[Event "Titled Tuesday Blitz April 12 Early 2022"]
[White "Vusatiuk, Vladimir"]
[Black "Oganian, Miran"]
[WhiteFideId "14118610"]
[BlackFideId "4122488"]
[WhiteElo "2157"]
[BlackElo "2357"]
[Result "0-1"]
[Round "02"]
[TimeControl "180+1"]
[Date "2022.04.13"]
[WhiteClock "0:00:03"]
[BlackClock "0:01:44"]

1. d4 {[%clk 0:03:00]}  e6 {[%clk 0:02:59]} 2. c4 {[%clk 0:03:00]}  d5 {[%clk 0:02:59]} 3. Nc3 {[%clk 0:03:01]}  a6 {[%clk 0:02:59]} 4. cxd5 {[%clk 0:02:57]}  exd5 {[%clk 0:03:00]} 5. Nf3 {[%clk 0:02:58]}  Nf6 {[%clk 0:03:00]} 6. Bf4 {[%clk 0:02:58]}  c6 {[%clk 0:03:00]} 7. e3 {[%clk 0:02:57]}  Bd6 {[%clk 0:03:00]} 8. Bg5 {[%clk 0:02:57]}  O-O {[%clk 0:02:59]} 9. Bd3 {[%clk 0:02:57]}  Nbd7 {[%clk 0:03:00]} 10. O-O {[%clk 0:02:57]}  Re8 {[%clk 0:03:00]} 11. Qc2 {[%clk 0:02:49]}  Nf8 {[%clk 0:03:00]} 12. Rad1 {[%clk 0:02:21]}  Bg4 {[%clk 0:03:00]} 13. Ne2 {[%clk 0:01:47]}  Ng6 {[%clk 0:02:55]} 14. Nd2 {[%clk 0:01:33]}  h6 {[%clk 0:02:51]} 15. Bxf6 {[%clk 0:01:20]}  Qxf6 {[%clk 0:02:52]} 16. Rde1 {[%clk 0:01:01]}  Nh4 {[%clk 0:02:51]} 17. f3 {[%clk 0:00:54]}  Bh3 {[%clk 0:02:44]} 18. gxh3 {[%clk 0:00:31]}  Qg5+ {[%clk 0:02:42]} 19. Ng3 {[%clk 0:00:12]}  Bxg3 {[%clk 0:02:42]} 20. Re2 {[%clk 0:00:08]}  Rxe3 {[%clk 0:02:30]} 21. Nb3 {[%clk 0:00:03]}  Rae8 {[%clk 0:02:01]} 22. Rxe3 {[%clk 0:00:03]}  Bf2+ {[%clk 0:01:45]} 23. Kh1 {[%clk 0:00:03]}  Qg2# {[%clk 0:01:44]} 0-1


[Site "https://www.chess.com"]

[Event "Titled Tuesday Blitz April 12 Early 2022"]
[White "Xiong, Jeffery"]
[Black "Weetik, Vjacheslav"]
[WhiteFideId "2047640"]
[BlackFideId "4153472"]
[WhiteElo "2727"]
[BlackElo "2469"]
[Result "1-0"]
[Round "02"]
[TimeControl "180+1"]
[Date "2022.04.12"]
[WhiteClock "0:01:30"]
[BlackClock "0:00:42"]

1. Nf3 {[%clk 0:03:00]}  Nf6 {[%clk 0:02:59]} 2. c4 {[%clk 0:03:00]}  g6 {[%clk 0:02:59]} 3. b3 {[%clk 0:03:00]}  Bg7 {[%clk 0:02:58]} 4. Bb2 {[%clk 0:03:01]}  O-O {[%clk 0:02:57]} 5. g3 {[%clk 0:03:01]}  c6 {[%clk 0:02:56]} 6. Bg2 {[%clk 0:03:01]}  d5 {[%clk 0:02:56]} 7. O-O {[%clk 0:03:01]}  a5 {[%clk 0:02:52]} 8. Nc3 {[%clk 0:03:01]}  Na6 {[%clk 0:02:42]} 9. d4 {[%clk 0:02:44]}  Bf5 {[%clk 0:02:36]} 10. Ne5 {[%clk 0:02:44]}  Nc7 {[%clk 0:02:26]} 11. Rc1 {[%clk 0:02:44]}  Ng4 {[%clk 0:01:56]} 12. e4 {[%clk 0:02:37]}  Nxe5 {[%clk 0:01:45]} 13. exf5 {[%clk 0:02:31]}  Nd7 {[%clk 0:01:42]} 14. fxg6 {[%clk 0:02:31]}  hxg6 {[%clk 0:01:42]} 15. cxd5 {[%clk 0:02:32]}  cxd5 {[%clk 0:01:41]} 16. Nxd5 {[%clk 0:02:33]}  Nb5 {[%clk 0:01:18]} 17. Qe2 {[%clk 0:02:22]}  Nxd4 {[%clk 0:01:18]} 18. Nxe7+ {[%clk 0:02:22]}  Kh7 {[%clk 0:01:16]} 19. Bxd4 {[%clk 0:01:44]}  Bxd4 {[%clk 0:01:16]} 20. Bxb7 {[%clk 0:01:44]}  Re8 {[%clk 0:01:07]} 21. Bxa8 {[%clk 0:01:44]}  Qxa8 {[%clk 0:01:03]} 22. Qg4 {[%clk 0:01:33]}  Qa7 {[%clk 0:00:42]} 23. Nc6 {[%clk 0:01:30]} 1-0


[Site "https://www.chess.com"]

[Event "Titled Tuesday Blitz April 12 Early 2022"]
[White "Yang, Kaiqi"]
[Black "Matlakov, Maxim"]
[WhiteFideId "8604398"]
[BlackFideId "4168003"]
[WhiteElo "2373"]
[BlackElo "2669"]
[Result "0-1"]
[Round "02"]
[TimeControl "180+1"]
[Date "2022.04.12"]
[WhiteClock "0:00:10"]
[BlackClock "0:01:10"]

1. e4 {[%clk 0:03:00]}  c5 {[%clk 0:02:56]} 2. Nc3 {[%clk 0:03:00]}  d6 {[%clk 0:02:52]} 3. d4 {[%clk 0:03:00]}  cxd4 {[%clk 0:02:52]} 4. Qxd4 {[%clk 0:03:01]}  Nc6 {[%clk 0:02:52]} 5. Qd2 {[%clk 0:03:01]}  e6 {[%clk 0:02:53]} 6. b3 {[%clk 0:03:01]}  d5 {[%clk 0:02:53]} 7. exd5 {[%clk 0:02:56]}  exd5 {[%clk 0:02:52]} 8. a3 {[%clk 0:02:32]}  Nf6 {[%clk 0:02:39]} 9. Bb2 {[%clk 0:02:31]}  d4 {[%clk 0:02:20]} 10. Nce2 {[%clk 0:02:16]}  Bc5 {[%clk 0:02:20]} 11. Nf3 {[%clk 0:02:11]}  O-O {[%clk 0:02:19]} 12. Nexd4 {[%clk 0:01:58]}  Ne4 {[%clk 0:01:42]} 13. Qd3 {[%clk 0:01:54]}  Qa5+ {[%clk 0:01:25]} 14. b4 {[%clk 0:01:39]}  Nxb4 {[%clk 0:01:24]} 15. axb4 {[%clk 0:00:27]}  Qxb4+ {[%clk 0:01:25]} 16. Bc3 {[%clk 0:00:15]}  Nxc3 {[%clk 0:01:20]} 17. Be2 {[%clk 0:00:10]}  Re8 {[%clk 0:01:11]} 18. O-O {[%clk 0:00:10]}  Bxd4 {[%clk 0:01:11]} 19. Nxd4 {[%clk 0:00:10]}  Qxd4 {[%clk 0:01:10]} 0-1


[Site "https://www.chess.com"]

[Event "Titled Tuesday Blitz April 12 Early 2022"]
[White "Zavgorodniy, Sergiy"]
[Black "Manukian, Artak"]
[WhiteFideId "14110148"]
[BlackFideId "13301373"]
[WhiteElo "2420"]
[BlackElo "2364"]
[Result "1-0"]
[Round "02"]
[TimeControl "180+1"]
[Date "2022.04.13"]
[WhiteClock "0:02:12"]
[BlackClock "0:02:25"]

1. e4 {[%clk 0:02:57]}  c6 {[%clk 0:02:58]} 2. d4 {[%clk 0:02:56]}  d5 {[%clk 0:02:59]} 3. exd5 {[%clk 0:02:56]}  cxd5 {[%clk 0:02:59]} 4. c4 {[%clk 0:02:56]}  Nc6 {[%clk 0:02:59]} 5. Nc3 {[%clk 0:02:56]}  Nf6 {[%clk 0:02:59]} 6. Nf3 {[%clk 0:02:56]}  Bg4 {[%clk 0:02:59]} 7. cxd5 {[%clk 0:02:57]}  Nxd5 {[%clk 0:02:59]} 8. Qb3 {[%clk 0:02:57]}  Bxf3 {[%clk 0:02:59]} 9. gxf3 {[%clk 0:02:58]}  Nb6 {[%clk 0:02:58]} 10. Be3 {[%clk 0:02:45]}  e6 {[%clk 0:02:57]} 11. Rg1 {[%clk 0:02:45]}  g6 {[%clk 0:02:55]} 12. O-O-O {[%clk 0:02:43]}  Bg7 {[%clk 0:02:54]} 13. d5 {[%clk 0:02:44]}  exd5 {[%clk 0:02:54]} 14. Nxd5 {[%clk 0:02:43]}  O-O {[%clk 0:02:54]} 15. Nxb6 {[%clk 0:02:40]}  Qf6 {[%clk 0:02:44]} 16. Nd5 {[%clk 0:02:36]}  Qh4 {[%clk 0:02:42]} 17. h3 {[%clk 0:02:31]}  Rfc8 {[%clk 0:02:39]} 18. Kb1 {[%clk 0:02:30]}  a5 {[%clk 0:02:38]} 19. Rg4 {[%clk 0:02:27]}  Qh5 {[%clk 0:02:38]} 20. Nb6 {[%clk 0:02:17]}  a4 {[%clk 0:02:36]} 21. Qb5 {[%clk 0:02:14]}  Ra5 {[%clk 0:02:25]} 22. Qxh5 {[%clk 0:02:12]}  gxh5 {[%clk 0:02:25]} 23. Rxg7+ {[%clk 0:02:12]} 1-0


[Site "https://www.chess.com"]

[Event "Titled Tuesday Blitz April 12 Early 2022"]
[White "Zierk, Steven"]
[Black "Kozak, Antoni"]
[WhiteFideId "2034255"]
[BlackFideId "21832030"]
[WhiteElo "2494"]
[BlackElo "2236"]
[Result "1-0"]
[Round "02"]
[TimeControl "180+1"]
[Date "2022.04.12"]
[WhiteClock "0:00:24"]
[BlackClock "0:00:08"]

1. d4 {[%clk 0:03:00]}  d5 {[%clk 0:02:51]} 2. c4 {[%clk 0:03:01]}  e6 {[%clk 0:02:51]} 3. Nf3 {[%clk 0:03:00]}  Nf6 {[%clk 0:02:49]} 4. Nc3 {[%clk 0:03:00]}  c6 {[%clk 0:02:49]} 5. e3 {[%clk 0:03:00]}  Nbd7 {[%clk 0:02:48]} 6. Be2 {[%clk 0:03:00]}  dxc4 {[%clk 0:02:44]} 7. a4 {[%clk 0:02:59]}  Bb4 {[%clk 0:02:35]} 8. O-O {[%clk 0:02:57]}  O-O {[%clk 0:02:34]} 9. Bxc4 {[%clk 0:02:56]}  Qe7 {[%clk 0:02:20]} 10. Qe2 {[%clk 0:02:43]}  e5 {[%clk 0:02:10]} 11. Rd1 {[%clk 0:02:31]}  e4 {[%clk 0:01:55]} 12. Nd2 {[%clk 0:02:29]}  Re8 {[%clk 0:01:49]} 13. h3 {[%clk 0:02:09]}  Nf8 {[%clk 0:01:38]} 14. Bb3 {[%clk 0:02:05]}  Bf5 {[%clk 0:01:25]} 15. Nf1 {[%clk 0:01:51]}  Rad8 {[%clk 0:01:14]} 16. Ng3 {[%clk 0:01:41]}  Bg6 {[%clk 0:01:13]} 17. a5 {[%clk 0:01:38]}  a6 {[%clk 0:01:09]} 18. Bd2 {[%clk 0:01:36]}  h5 {[%clk 0:01:03]} 19. Na4 {[%clk 0:01:34]}  Bd6 {[%clk 0:01:01]} 20. Nf1 {[%clk 0:01:31]}  h4 {[%clk 0:00:59]} 21. Rdc1 {[%clk 0:01:30]}  Bh5 {[%clk 0:00:57]} 22. Qe1 {[%clk 0:01:29]}  g5 {[%clk 0:00:54]} 23. Nc5 {[%clk 0:01:26]}  Ng6 {[%clk 0:00:50]} 24. Bd1 {[%clk 0:01:20]}  g4 {[%clk 0:00:45]} 25. hxg4 {[%clk 0:01:20]}  Bxg4 {[%clk 0:00:44]} 26. f3 {[%clk 0:01:16]}  Bf5 {[%clk 0:00:38]} 27. Ra3 {[%clk 0:01:09]}  h3 {[%clk 0:00:33]} 28. g4 {[%clk 0:01:05]}  Bc8 {[%clk 0:00:30]} 29. g5 {[%clk 0:01:02]}  Nd7 {[%clk 0:00:19]} 30. Nxe4 {[%clk 0:00:58]}  Bxa3 {[%clk 0:00:18]} 31. bxa3 {[%clk 0:00:59]}  f5 {[%clk 0:00:15]} 32. Bb4 {[%clk 0:00:51]}  Qe6 {[%clk 0:00:14]} 33. Nd6 {[%clk 0:00:44]}  Rf8 {[%clk 0:00:13]} 34. f4 {[%clk 0:00:40]}  c5 {[%clk 0:00:11]} 35. dxc5 {[%clk 0:00:39]}  Nb8 {[%clk 0:00:08]} 36. Qg3 {[%clk 0:00:34]}  Nc6 {[%clk 0:00:08]} 37. Bc3 {[%clk 0:00:31]}  Rd7 {[%clk 0:00:08]} 38. Be2 {[%clk 0:00:29]}  Rxd6 {[%clk 0:00:07]} 39. cxd6 {[%clk 0:00:28]}  Qxd6 {[%clk 0:00:08]} 40. Qxh3 {[%clk 0:00:25]}  Be6 {[%clk 0:00:08]} 41. Qh6 {[%clk 0:00:24]} 1-0


[Site "https://www.chess.com"]

[Event "Titled Tuesday Blitz April 12 Early 2022"]
[White "parintele_chess"]
[Black "Aslanov, Umid"]
[BlackFideId "13412620"]
[WhiteElo "2256"]
[BlackElo "1796"]
[Result "0-1"]
[Round "02"]
[TimeControl "180+1"]
[Date "2022.04.13"]
[WhiteClock "0:00:03"]
[BlackClock "0:00:17"]

1. d4 {[%clk 0:02:58]}  d5 {[%clk 0:02:59]} 2. Bf4 {[%clk 0:02:58]}  Nf6 {[%clk 0:02:59]} 3. e3 {[%clk 0:02:58]}  c5 {[%clk 0:03:00]} 4. Nc3 {[%clk 0:02:57]}  cxd4 {[%clk 0:02:59]} 5. exd4 {[%clk 0:02:57]}  a6 {[%clk 0:02:59]} 6. Bd3 {[%clk 0:02:53]}  Nc6 {[%clk 0:02:59]} 7. Nf3 {[%clk 0:02:53]}  Bg4 {[%clk 0:02:59]} 8. Be2 {[%clk 0:02:43]}  e6 {[%clk 0:02:54]} 9. O-O {[%clk 0:02:43]}  Bd6 {[%clk 0:02:54]} 10. Ne5 {[%clk 0:02:18]}  Bxe2 {[%clk 0:02:39]} 11. Nxe2 {[%clk 0:02:18]}  Bxe5 {[%clk 0:02:37]} 12. dxe5 {[%clk 0:02:18]}  Nh5 {[%clk 0:02:28]} 13. Re1 {[%clk 0:02:05]}  Nxf4 {[%clk 0:02:18]} 14. Nxf4 {[%clk 0:02:05]}  Qg5 {[%clk 0:02:18]} 15. Nd3 {[%clk 0:02:01]}  O-O {[%clk 0:02:11]} 16. f4 {[%clk 0:01:59]}  Qe7 {[%clk 0:02:09]} 17. c3 {[%clk 0:01:49]}  b5 {[%clk 0:02:08]} 18. Qf3 {[%clk 0:01:47]}  b4 {[%clk 0:02:06]} 19. cxb4 {[%clk 0:01:44]}  Nxb4 {[%clk 0:02:03]} 20. Nxb4 {[%clk 0:01:45]}  Qxb4 {[%clk 0:02:04]} 21. b3 {[%clk 0:01:42]}  g6 {[%clk 0:01:50]} 22. g3 {[%clk 0:01:41]}  Rac8 {[%clk 0:01:48]} 23. Rac1 {[%clk 0:01:28]}  Qd2 {[%clk 0:01:44]} 24. Qf2 {[%clk 0:01:09]}  Qa5 {[%clk 0:01:29]} 25. Rxc8 {[%clk 0:01:01]}  Rxc8 {[%clk 0:01:28]} 26. Re2 {[%clk 0:00:53]}  Rc1+ {[%clk 0:01:11]} 27. Kg2 {[%clk 0:00:52]}  Qc7 {[%clk 0:01:12]} 28. a4 {[%clk 0:00:38]}  a5 {[%clk 0:01:08]} 29. Qd4 {[%clk 0:00:33]}  Qb7 {[%clk 0:00:57]} 30. Rf2 {[%clk 0:00:14]}  Qxb3 {[%clk 0:00:51]} 31. h4 {[%clk 0:00:12]}  Qc4 {[%clk 0:00:33]} 32. Qb2 {[%clk 0:00:05]}  Qe4+ {[%clk 0:00:31]} 33. Kh3 {[%clk 0:00:05]}  Rh1+ {[%clk 0:00:30]} 34. Rh2 {[%clk 0:00:05]}  Rb1 {[%clk 0:00:17]} 35. Qc2 {[%clk 0:00:03]}  Qxc2 {[%clk 0:00:17]} 36. Rxc2 {[%clk 0:00:04]}  Rb4 {[%clk 0:00:17]} 37. Rc8+ {[%clk 0:00:04]}  Kg7 {[%clk 0:00:18]} 38. Kg4 {[%clk 0:00:04]}  h5+ {[%clk 0:00:16]} 39. Kg5 {[%clk 0:00:04]}  Rb3 {[%clk 0:00:16]} 40. g4 {[%clk 0:00:03]}  Rg3 {[%clk 0:00:17]} 0-1


[Site "https://www.chess.com"]

[Event "Titled Tuesday Blitz April 12 Early 2022"]
[White "Abdilkhair, Abilmansur"]
[Black "Gabdrakhmanov, Azat"]
[WhiteFideId "13716417"]
[BlackFideId "34189197"]
[WhiteElo "2108"]
[BlackElo "2279"]
[Result "0-1"]
[Round "03"]
[TimeControl "180+1"]
[Date "2022.04.13"]
[WhiteClock "0:01:49"]
[BlackClock "0:02:20"]

1. d4 {[%clk 0:03:00]}  Nf6 {[%clk 0:02:59]} 2. Nc3 {[%clk 0:03:00]}  d5 {[%clk 0:02:57]} 3. Bf4 {[%clk 0:03:00]}  e6 {[%clk 0:02:57]} 4. e3 {[%clk 0:02:54]}  Be7 {[%clk 0:02:57]} 5. Qf3 {[%clk 0:02:43]}  c5 {[%clk 0:02:52]} 6. O-O-O {[%clk 0:02:37]}  cxd4 {[%clk 0:02:45]} 7. exd4 {[%clk 0:02:19]}  a6 {[%clk 0:02:45]} 8. Qg3 {[%clk 0:02:13]}  Nh5 {[%clk 0:02:41]} 9. Qg4 {[%clk 0:02:00]}  Nxf4 {[%clk 0:02:39]} 10. Qxg7 {[%clk 0:02:00]}  Ng6 {[%clk 0:02:31]} 11. Nf3 {[%clk 0:01:49]}  Bf8 {[%clk 0:02:20]} 0-1


[Site "https://www.chess.com"]

[Event "Titled Tuesday Blitz April 12 Early 2022"]
[White "Agibileg, Uurtsaikh"]
[Black "Taspinar, Yanki"]
[WhiteFideId "4901606"]
[BlackFideId "34561188"]
[WhiteElo "2205"]
[BlackElo "1518"]
[Result "0-1"]
[Round "03"]
[TimeControl "180+1"]
[Date "2022.04.13"]
[WhiteClock "0:00:08"]
[BlackClock "0:00:21"]

1. d4 {[%clk 0:02:58]}  d5 {[%clk 0:02:58]} 2. c4 {[%clk 0:02:58]}  c6 {[%clk 0:02:58]} 3. Nf3 {[%clk 0:02:57]}  Nf6 {[%clk 0:02:58]} 4. Nc3 {[%clk 0:02:57]}  e6 {[%clk 0:02:59]} 5. Bg5 {[%clk 0:02:56]}  Nbd7 {[%clk 0:02:59]} 6. cxd5 {[%clk 0:02:55]}  exd5 {[%clk 0:02:59]} 7. e3 {[%clk 0:02:55]}  Bd6 {[%clk 0:02:59]} 8. Bd3 {[%clk 0:02:56]}  O-O {[%clk 0:02:59]} 9. O-O {[%clk 0:02:56]}  Re8 {[%clk 0:02:58]} 10. Qc2 {[%clk 0:02:57]}  Nf8 {[%clk 0:02:57]} 11. h3 {[%clk 0:02:57]}  h6 {[%clk 0:02:56]} 12. Bh4 {[%clk 0:02:54]}  Be7 {[%clk 0:02:52]} 13. Bg3 {[%clk 0:02:52]}  Be6 {[%clk 0:02:48]} 14. Rab1 {[%clk 0:02:50]}  a5 {[%clk 0:02:48]} 15. Ne5 {[%clk 0:02:48]}  Rc8 {[%clk 0:02:43]} 16. f4 {[%clk 0:02:47]}  c5 {[%clk 0:02:41]} 17. f5 {[%clk 0:02:43]}  Bd7 {[%clk 0:02:41]} 18. Rbd1 {[%clk 0:02:35]}  Qb6 {[%clk 0:02:39]} 19. Be2 {[%clk 0:02:26]}  cxd4 {[%clk 0:02:32]} 20. exd4 {[%clk 0:02:27]}  Ne4 {[%clk 0:02:32]} 21. Bh2 {[%clk 0:02:15]}  Bg5 {[%clk 0:02:20]} 22. Rd3 {[%clk 0:01:56]}  Bb5 {[%clk 0:02:16]} 23. Kh1 {[%clk 0:01:40]}  Bxd3 {[%clk 0:02:12]} 24. Qxd3 {[%clk 0:01:40]}  Nxc3 {[%clk 0:02:00]} 25. bxc3 {[%clk 0:01:40]}  Qb2 {[%clk 0:02:00]} 26. Bh5 {[%clk 0:01:18]}  Re7 {[%clk 0:01:42]} 27. f6 {[%clk 0:00:47]}  gxf6 {[%clk 0:01:28]} 28. Qf5 {[%clk 0:00:31]}  Rxc3 {[%clk 0:00:49]} 29. h4 {[%clk 0:00:24]}  Bxh4 {[%clk 0:00:34]} 30. Nf3 {[%clk 0:00:22]}  Rxf3 {[%clk 0:00:26]} 31. Bxf3 {[%clk 0:00:16]}  Qxd4 {[%clk 0:00:26]} 32. Bxd5 {[%clk 0:00:15]}  Bg5 {[%clk 0:00:26]} 33. Bd6 {[%clk 0:00:13]}  Rd7 {[%clk 0:00:20]} 34. Bxf8 {[%clk 0:00:12]}  Rxd5 {[%clk 0:00:20]} 35. Qc8 {[%clk 0:00:10]}  Qh4+ {[%clk 0:00:21]} 36. Kg1 {[%clk 0:00:08]}  Be3+ {[%clk 0:00:21]} 0-1


[Site "https://www.chess.com"]

[Event "Titled Tuesday Blitz April 12 Early 2022"]
[White "Andreikin, Dmitry"]
[Black "GodDMuhammad"]
[WhiteFideId "4158814"]
[WhiteElo "2736"]
[BlackElo "2302"]
[Result "1-0"]
[Round "03"]
[TimeControl "180+1"]
[Date "2022.04.12"]
[WhiteClock "0:01:53"]
[BlackClock "0:00:53"]

1. e4 {[%clk 0:03:00]}  e5 {[%clk 0:02:59]} 2. Nf3 {[%clk 0:03:00]}  f5 {[%clk 0:03:00]} 3. Nxe5 {[%clk 0:02:53]}  Qf6 {[%clk 0:02:59]} 4. d4 {[%clk 0:02:48]}  d6 {[%clk 0:02:59]} 5. Nc4 {[%clk 0:02:42]}  fxe4 {[%clk 0:02:59]} 6. Nc3 {[%clk 0:02:42]}  Qg6 {[%clk 0:02:59]} 7. h4 {[%clk 0:02:39]}  Nf6 {[%clk 0:02:49]} 8. h5 {[%clk 0:02:39]}  Qf7 {[%clk 0:02:49]} 9. Bg5 {[%clk 0:02:36]}  Nbd7 {[%clk 0:02:40]} 10. Ne3 {[%clk 0:02:33]}  c6 {[%clk 0:02:33]} 11. d5 {[%clk 0:02:31]}  Be7 {[%clk 0:02:30]} 12. h6 {[%clk 0:02:03]}  g6 {[%clk 0:02:22]} 13. dxc6 {[%clk 0:02:03]}  bxc6 {[%clk 0:02:20]} 14. Bc4 {[%clk 0:02:03]}  d5 {[%clk 0:02:01]} 15. Nexd5 {[%clk 0:02:03]}  cxd5 {[%clk 0:02:02]} 16. Nxd5 {[%clk 0:02:03]}  Nxd5 {[%clk 0:02:01]} 17. Bxd5 {[%clk 0:02:03]}  Qf5 {[%clk 0:01:33]} 18. Bxe7 {[%clk 0:02:03]}  Rb8 {[%clk 0:01:27]} 19. Ba3 {[%clk 0:01:55]}  Ba6 {[%clk 0:01:23]} 20. Qd4 {[%clk 0:01:52]}  Qf6 {[%clk 0:01:06]} 21. O-O-O {[%clk 0:01:52]}  Qxd4 {[%clk 0:00:53]} 22. Rxd4 {[%clk 0:01:53]} 1-0


[Site "https://www.chess.com"]

[Event "Titled Tuesday Blitz April 12 Early 2022"]
[White "Ansh M Shah"]
[Black "Rudykh, Stepan"]
[WhiteFideId "25033379"]
[BlackFideId "4180321"]
[WhiteElo "1819"]
[BlackElo "2135"]
[Result "0-1"]
[Round "03"]
[TimeControl "180+1"]
[Date "2022.04.13"]
[WhiteClock "0:00:01"]
[BlackClock "0:00:23"]

1. d4 {[%clk 0:02:59]}  e6 {[%clk 0:03:00]} 2. c4 {[%clk 0:02:58]}  f5 {[%clk 0:03:00]} 3. Nf3 {[%clk 0:02:58]}  Nf6 {[%clk 0:03:00]} 4. g3 {[%clk 0:02:59]}  Be7 {[%clk 0:03:01]} 5. Bg2 {[%clk 0:03:00]}  O-O {[%clk 0:03:01]} 6. O-O {[%clk 0:03:01]}  d6 {[%clk 0:03:02]} 7. Nbd2 {[%clk 0:03:01]}  a5 {[%clk 0:02:47]} 8. b3 {[%clk 0:02:42]}  Ne4 {[%clk 0:02:43]} 9. Bb2 {[%clk 0:02:42]}  a4 {[%clk 0:02:38]} 10. Qc2 {[%clk 0:02:41]}  a3 {[%clk 0:02:36]} 11. Bc1 {[%clk 0:02:37]}  Nxd2 {[%clk 0:02:31]} 12. Nxd2 {[%clk 0:02:37]}  e5 {[%clk 0:02:25]} 13. dxe5 {[%clk 0:02:18]}  dxe5 {[%clk 0:02:24]} 14. c5 {[%clk 0:02:16]}  Nc6 {[%clk 0:02:15]} 15. e3 {[%clk 0:01:36]}  Kh8 {[%clk 0:01:53]} 16. Nc4 {[%clk 0:01:32]}  Be6 {[%clk 0:01:20]} 17. Rd1 {[%clk 0:01:12]}  Qe8 {[%clk 0:01:16]} 18. Nxa3 {[%clk 0:00:59]}  e4 {[%clk 0:01:07]} 19. Bb2 {[%clk 0:00:25]}  Nb4 {[%clk 0:01:03]} 20. Qe2 {[%clk 0:00:21]}  Bxc5 {[%clk 0:00:58]} 21. Nc2 {[%clk 0:00:08]}  Nxa2 {[%clk 0:00:50]} 22. Bd4 {[%clk 0:00:06]}  Bd6 {[%clk 0:00:45]} 23. h3 {[%clk 0:00:02]}  Bxb3 {[%clk 0:00:42]} 24. Bb2 {[%clk 0:00:02]}  Be5 {[%clk 0:00:28]} 25. Bxe5 {[%clk 0:00:02]}  Qxe5 {[%clk 0:00:29]} 26. Nd4 {[%clk 0:00:02]}  Nc3 {[%clk 0:00:28]} 27. Rxa8 {[%clk 0:00:01]}  Rxa8 {[%clk 0:00:27]} 28. Qe1 {[%clk 0:00:01]}  Nxd1 {[%clk 0:00:26]} 29. Qb4 {[%clk 0:00:01]}  Qd5 {[%clk 0:00:23]} 0-1


[Site "https://www.chess.com"]